Cogmind - Beta 10.2 @@@ ROGUE MODE // 2020.11.08 @ 23:06:07 // Halloween2020/ForbiddenLore Player: blelm Result: Self-destructed Performance ------------- Evolutions (5) 2500 Regions Visited (18) 3600 Robots Destroyed (268) 1340 Value Destroyed (8514) 8514 Prototype IDs (20) 400 Alien Tech Used (0) 0 Bonus (1778) 1778 TOTAL SCORE: 18132 Bonus ------- High Alert Combat Kills 527 Follower Combat Kills 85 Entered Garrisons 400 Used RIF Installer 1000 Friendly Fire -234 Cogmind --------- Core Integrity 711/1000 Matter 152/300 Energy 1100/1100 System Corruption 0% Temperature Cool (0) Movement Treading (180) Ox1 Location -5/Factory Parts ------- > --- POWER (2) -------- (None) > --- PROPULSION (4) --- Heavy Treads > --- UTILITY (9) ------ Experimental Heat Sink Large Storage Unit High-capacity Storage Unit High-capacity Storage Unit Zionite Biocell Improved Signal Interpreter Weapon Cycler > --- WEAPON (2) ------- (None) > --- INVENTORY (26) --- Antimatter Reactor Matter Compressor (0) Makeshift Sensor Array Advanced Terrain Scan Processor Matter Filter Weapon Cycler Zionite Weapon Casing Zionite Weapon Casing Damper Plating Damper Plating Relay Coupler [NC] (22) Improved System Backup Module Gauss Rifle Flak Gun Heavy Machine Gun Heavy Flak Cannon Remote Datajack Great Axe Peak State ------------ > --- POWER ------------ F-cell Engine > --- PROPULSION ------- Heavy Treads Armored Huge Wheel > --- UTILITY ---------- Experimental Heat Sink Large Storage Unit High-capacity Storage Unit High-capacity Storage Unit Improved Signal Interpreter Weapon Cycler Improved Heavy Armor Plating > --- WEAPON ----------- Heavy Flak Cannon Heavy Flak Cannon > --- INVENTORY -------- Antimatter Reactor Heavy Treads Zionite Biocell Matter Compressor Makeshift Sensor Array Advanced Terrain Scan Processor Matter Filter Weapon Cycler Zionite Weapon Casing Zionite Weapon Casing Layered Medium Armor Plating Damper Plating Damper Plating Relay Coupler [NC] Improved System Backup Module Gauss Rifle Flak Gun Heavy Machine Gun Heavy Missile Launcher Remote Datajack Great Axe [Rating: 75] Favorites ----------- Power Enhanced Nuclear Core Engine Improved Deuterium Engine Power Core Enhanced Nuclear Core Reactor Zionite Light DM Reactor Propulsion Medium Treads Treads Medium Treads Leg Aluminum Leg Wheel Armored Huge Wheel Hover Unit Zionite Glidesys I Utility High-capacity Storage Unit Device Improved Sensor Array Storage High-capacity Storage Unit Processor Improved Signal Interpreter Hackware Relay Coupler [NC] Protection Reactive Plating Weapon Flak Gun Energy Gun Lightning Gun Energy Cannon Heavy Ion Cannon Ballistic Gun Flak Gun Ballistic Cannon Light Cannon Launcher Proton Missile Launcher Special Weapon Remote Datajack Slashing Weapon Great Axe Build | -11 -10 -10 -10 -9 -8 -8 -7 -7 -7 -7 -7 -7 -7 -6 -6 -6 -6 -5 ------- Run | Scr Mat Min Exi Min Mat Gar Fac Gar Fac Low Low Zio Dee Pro Fac Was Fac Fac Slots Evolved 10 | . . . . . 4 . 2 . . . . . . . 2 . . 2 Power 1 | . . . . . . . . . . . . . . . . . . 1 Propulsion 2 | . . . . . 1 . . . . . . . . . 1 . . . Utility 7 | . . . . . 3 . 2 . . . . . . . 1 . . 1 Weapon . | . . . . . . . . . . . . . . . . . . . Parts Attached 310 | 3 2 3 1 2 38 10 13 12 86 3 9 26 26 . 25 14 35 2 Power 11 | . . 1 . . 2 . . 1 1 . . 2 2 . . 1 1 . Engine 5 | . . 1 . . 1 . . 1 . . . 1 . . . . 1 . Core 3 | . . . . . 1 . . . 1 . . 1 . . . . . . Reactor 3 | . . . . . . . . . . . . . 2 . . 1 . . Propulsion 34 | 2 1 . . . 9 1 . 2 5 . . 2 6 . 3 2 . 1 Treads 27 | 1 1 . . . 7 1 . 2 4 . . 2 4 . 2 2 . 1 Leg . | . . . . . . . . . . . . . . . . . . . Wheel 4 | 1 . . . . 1 . . . 1 . . . . . 1 . . . Hover 3 | . . . . . 1 . . . . . . . 2 . . . . . Flight . | . . . . . . . . . . . . . . . . . . . Utility 147 | 1 . 2 1 . 11 5 8 3 48 2 6 10 14 . 11 8 16 1 Device 83 | . . . . . 3 . 4 . 36 2 5 3 5 . 9 7 9 . Storage 11 | 1 . 2 1 . . 2 2 . 1 . . . 1 . . . . 1 Processor 6 | . . . . . 1 . . . 3 . . 1 . . . . 1 . Hackware 2 | . . . . . . . . . 1 . . . . . . 1 . . Protection 45 | . . . . . 7 3 2 3 7 . 1 6 8 . 2 . 6 . Artifact . | . . . . . . . . . . . . . . . . . . . Weapon 118 | . 1 . . 2 16 4 5 6 32 1 3 12 4 . 11 3 18 . Energy Gun 14 | . . . . . 5 2 3 3 . . . . 1 . . . . . Energy Cannon 5 | . . . . . 2 . 1 . 1 . . . . . 1 . . . Ballistic Gun 44 | . . . . . 6 . . 2 15 1 1 6 . . 6 2 5 . Ballistic Cannon 7 | . 1 . . 1 1 . . 1 . . . . . . . . 3 . Launcher 24 | . . . . 1 2 2 1 . 4 . 1 5 3 . . . 5 . Special Weapon 7 | . . . . . . . . . 5 . . . . . 1 1 . . Impact Weapon . | . . . . . . . . . . . . . . . . . . . Slashing Weapon 17 | . . . . . . . . . 7 . 1 1 . . 3 . 5 . Piercing Weapon . | . . . . . . . . . . . . . . . . . . . Special Melee Weapon . | . . . . . . . . . . . . . . . . . . . Unidentified Prototypes 18 | . . . . . 1 . . 1 3 . . 1 8 . 2 . 2 . Parts Lost 50 | . . 1 . . 10 9 1 7 7 . . 6 1 . 1 . 1 6 Power 5 | . . 1 . . . 1 . 1 . . . 1 . . . . . 1 Propulsion 13 | . . . . . 4 2 . 2 1 . . 2 . . . . . 2 Utility 20 | . . . . . 4 5 . 2 4 . . 1 1 . 1 . 1 1 Weapon 12 | . . . . . 2 1 1 2 2 . . 2 . . . . . 2 Highest Loss Streak 7 | . . 1 . . 6 7 1 3 1 . . 2 1 . 1 . 1 6 Average Slot Usage (%) 90 | . 100 99 96 85 87 87 84 82 97 92 92 91 84 84 86 86 84 63 Engine 1 | . 14 13 14 14 2 . . 5 2 . . . 2 . . . 4 3 Core 5 | . . . . . 6 9 7 1 4 7 7 6 . . . . . . Treads 11 | . 14 14 14 14 25 27 23 23 18 7 7 7 6 7 13 6 6 4 Wheel 5 | . 14 14 14 14 1 . . . 1 7 7 7 7 7 6 6 6 3 Device 8 | . . . . . 8 9 8 7 14 12 14 7 5 7 13 19 17 11 Storage 20 | . 28 28 24 14 9 11 13 15 16 23 23 23 23 23 20 20 20 17 Processor 5 | . . . . . . . . . 5 7 7 7 7 7 6 6 6 5 Protection 12 | . . . . . 15 13 15 14 15 9 7 14 9 7 6 . 1 4 Energy Gun 1 | . . . . . 2 17 14 13 . . . . . . . . . . Ballistic Gun 7 | . 16 14 14 14 13 . . . 12 14 12 6 8 7 4 12 6 . Slashing Weapon 4 | . . . . . . . . . 1 . 1 6 . . 4 . 2 . Naked Turns . | . . . . . . . . . . . . . . . . . . . Heaviest Build 129 | 17 18 24 88 88 116 113 113 111 117 114 114 122 122 111 112 112 129 116 Greatest Support 84 | 16 16 16 16 23 69 69 68 68 84 28 28 28 28 28 28 70 70 70 Greatest Overweight (x) 37 | 4 1 1 5 5 6 1 1 1 4 4 4 37 4 3 3 3 4 4 Average Overweight (x) 5 | 2 1 . 1 4 1 . . 1 1 3 3 16 3 3 3 1 2 3 Largest Inventory Capacity 26 | 8 8 12 24 24 24 24 20 20 26 26 26 26 26 26 26 26 26 26 Average Capacity 24 | 6 8 9 14 24 24 19 12 20 20 26 26 26 26 26 26 26 26 26 Most Carried 26 | 6 8 10 12 15 24 24 14 20 22 25 25 26 26 26 26 26 26 25 Average Carried 22 | 3 6 8 10 13 19 19 10 17 19 22 25 25 25 26 24 25 25 24 Final Capacity 26 | 8 8 12 24 24 24 10 20 20 26 26 26 26 26 26 26 26 26 26 Final Carried 26 | 4 8 10 12 15 24 10 14 18 21 25 25 26 26 26 24 26 25 22 Class Distribution -------------------- 90% | Hauler-Mutant 4% | Mutant 4% | Scavenger-Mutant Dominant Class ---------------- Mutant | -10/Materials Mutant | -10/Mines Mutant | -10/Exiles Hauler-Mutant | -9/Mines Hauler-Mutant | -8/Materials Hauler-Mutant | -8/Garrison Mutant | -7/Factory Hauler-Mutant | -7/Garrison Hauler-Mutant | -7/Factory Hauler-Mutant | -7/Lower Caves Hauler-Mutant | -7/Lower Caves Hauler-Mutant | -7/Zion Hauler-Mutant | -7/Deep Caves Hauler-Mutant | -6/Proximity Caves Hauler-Mutant | -6/Factory Hauler-Mutant | -6/Waste Hauler-Mutant | -6/Factory Hauler-Mutant | -5/Factory Resources | -11 -10 -10 -10 -9 -8 -8 -7 -7 -7 -7 -7 -7 -7 -6 -6 -6 -6 -5 ----------- Run | Scr Mat Min Exi Min Mat Gar Fac Gar Fac Low Low Zio Dee Pro Fac Was Fac Fac Matter Collected 8930 | 248 103 95 10 89 1259 238 97 239 2169 137 76 1585 262 112 858 548 732 73 Remotely . | . . . . . . . . . . . . . . . . . . . Salvage Created 11054 | 80 174 44 . 147 1475 554 196 445 3098 . 49 2002 473 67 680 1129 441 . Parts 582 | 2 12 2 . 7 84 33 16 19 164 . 6 149 25 8 19 15 21 . Haulers Intercepted 13 | . . . . . 4 . . . 6 . . . . . 2 . 1 . Recyclers Shooed 11 | 1 . . . . 4 . . . 3 . . . . . 2 . 1 . Parts Field Recycled . | . . . . . . . . . . . . . . . . . . . Retrieved Matter . | . . . . . . . . . . . . . . . . . . . Parts Self-Destructed 15 | . . . . . . . . . . . 7 3 . 5 . . . . Prevented . | . . . . . . . . . . . . . . . . . . . Kills | -11 -10 -10 -10 -9 -8 -8 -7 -7 -7 -7 -7 -7 -7 -6 -6 -6 -6 -5 ------- Run | Scr Mat Min Exi Min Mat Gar Fac Gar Fac Low Low Zio Dee Pro Fac Was Fac Fac Combat Hostiles Destroyed 157 | . 5 1 . 5 26 19 5 8 41 . 4 7 9 5 7 4 11 . Guns 75 | . 2 . . 1 16 8 1 4 28 . 1 1 . . 7 4 2 . Cannons 20 | . 3 1 . 3 7 . . 2 . . . . . . . . 4 . AOE 52 | . . . . 1 3 9 3 1 11 . 3 3 8 5 . . 5 . Classes Destroyed 20 | 1 2 . . 1 9 . . 1 . . . 4 1 . . 1 . . Worker 6 | . . . . . 1 . . . 5 . . . . . . . . . Builder 7 | . . . . . 1 . 1 . 3 . . . . . . . 2 . Hauler 13 | . . . . . 4 . . . 6 . . . . . 2 . 1 . Recycler 10 | 1 . . . . 2 . . . 5 . . . . . 1 . 1 . Operator 3 | . . . . . 2 . . . 1 . . . . . . . . . Watcher 11 | . 1 . . . 3 . 1 . 5 . . . . . . . 1 . Swarmer 32 | . . . . . 4 7 3 . 6 . 4 . . 5 . . 3 . Grunt 57 | . 5 1 . 4 12 4 . 3 23 . . . . . 5 . . . Brawler 4 | . . . . . 1 1 . . 2 . . . . . . . . . Duelist 3 | . . . . . 1 1 . . 1 . . . . . . . . . Sentry 21 | . . . . . 6 5 1 3 2 . . . . . . . 4 . Demolisher 1 | . . . . 1 . . . . . . . . . . . . . . Hunter 9 | . . . . . 2 1 1 1 2 . . . . . . . 2 . Programmer 10 | . . . . . . . . 1 5 . . . . . 2 . 2 . Compactor 4 | . . . . . . . . . . . . . . . . 4 . . Zionite 60 | . . . . . . . . . . . . 60 . . . . . . Z-Technician 5 | . . . . . . . . . . . . . 5 . . . . . Z-Light 9 | . . . . . . . . . . . . . 9 . . . . . Tinkerer 5 | . . . . . . . . . . . . 5 . . . . . . Thug 1 | . . . . . . . . . . . . . . . . 1 . . Marauder 1 | . . . . . . . . . . . . 1 . . . . . . Mutant 5 | . . . . . . . . . . . . 5 . . . . . . Best Kill Streak 10 | 1 2 1 . 3 4 8 5 4 10 . 4 9 6 3 5 2 3 . Combat Bots Only 8 | . 2 1 . 3 3 8 4 4 8 . 4 2 6 3 3 2 3 . Max Kills in Single Turn 4 | 1 1 1 . 1 1 2 2 1 4 . 2 2 2 2 1 1 2 . Gunslinging . | . . . . . . . . . . . . . . . . . . . Exploded 4 | . . . . 1 1 2 2 1 4 . 2 1 2 2 . . 2 . Melee . | . . . . . . . . . . . . . . . . . . . Uniques/NPCs Destroyed 1 | . . . . . . . . . . . . 1 . . . . . . Imprinter (-7/Zion) Combat | -11 -10 -10 -10 -9 -8 -8 -7 -7 -7 -7 -7 -7 -7 -6 -6 -6 -6 -5 -------- Run | Scr Mat Min Exi Min Mat Gar Fac Gar Fac Low Low Zio Dee Pro Fac Was Fac Fac Damage Taken 11905 | . 61 117 . 100 1750 668 295 1093 2097 . 150 828 830 110 544 . 1887 1375 Core 1250 | . . 17 . . 128 77 12 53 151 . . 127 144 16 99 . 137 289 Absorbed by Shields . | . . . . . . . . . . . . . . . . . . . Reduced by Siege Mode 66 | . . . . . . . . . . . . . . . . . 66 . Core Remaining (%) 71 | 100 . . . 93 . 62 . . . . . . . 28 . . 72 . Volleys Fired 804 | 3 16 6 . 8 140 44 17 44 162 . 7 206 16 6 41 35 53 . Largest 2 | 2 2 2 . 2 2 2 2 2 2 . 2 2 1 1 2 2 2 . Hottest 110 | 40 55 55 . 55 110 110 110 110 56 . 56 56 39 36 52 56 106 . Shots Fired 1282 | 6 32 12 . 15 268 74 25 66 299 . 12 220 16 6 67 70 94 . Gun 894 | 6 17 6 . 7 213 65 16 56 280 . 10 63 . . 58 70 27 . Cannon 142 | . 15 6 . 7 47 . 3 10 . . . . . . . . 54 . Launcher 230 | . . . . 1 8 9 6 . 12 . 2 157 16 6 . . 13 . Special 16 | . . . . . . . . . 7 . . . . . 9 . . . Kinetic 878 | 6 32 12 . 14 242 . . 10 280 . 10 63 . . 58 70 81 . Thermal 14 | . . . . . 4 . 3 7 . . . . . . . . . . Explosive 60 | . . . . 1 8 9 6 . 2 . 2 8 5 6 . . 13 . Electromagnetic 314 | . . . . . 14 65 16 49 10 . . 149 11 . . . . . Robot Hit Streak 35 | 4 12 6 . 4 25 13 5 9 18 . 3 9 4 1 12 35 18 . Robot Miss Streak 12 | 1 8 1 . 2 3 4 2 2 10 . 5 5 1 1 7 6 12 . Penetration Max . | . . . . . . . . . . . . . . . . . . . Secondary Targets 5 | . . . . . 1 . . . 2 . . 2 . . . . . . Max Gunslinging Chain 1 | . . . . . 1 . . . 1 . . 1 . . . . . . Shots Hit Robots 944 | 4 17 7 . 7 183 49 10 47 267 . 10 123 7 1 65 67 80 . Core Hits 713 | 1 8 1 . 7 74 31 12 21 230 . 6 115 26 6 59 42 69 5 Critical Hits 2 | . . . . . 2 . . . . . . . . . . . . . Critical Kills . | . . . . . . . . . . . . . . . . . . . Critical Parts Destroyed 2 | . . . . . 2 . . . . . . . . . . . . . Melee Attacks 87 | . . . . . . . . . 19 . 2 1 . . 49 . 16 . Impact . | . . . . . . . . . . . . . . . . . . . Slashing 87 | . . . . . . . . . 19 . 2 1 . . 49 . 16 . Piercing . | . . . . . . . . . . . . . . . . . . . Sneak Attacks 7 | . . . . . . . . . 4 . . . . . 1 . 2 . Combat Hostiles . | . . . . . . . . . . . . . . . . . . . Follow-up Attacks . | . . . . . . . . . . . . . . . . . . . Damage Inflicted 26656 | 66 261 77 . 234 3417 1702 609 1121 5689 . 298 4115 2380 458 1469 2124 2548 88 Guns 12277 | 66 83 25 . 11 2165 676 219 797 3567 . 45 860 . . 1163 2124 476 . Cannons 1956 | . 178 52 . 110 553 . . 254 . . . . . . . . 809 . Explosions 10987 | . . . . 113 535 1026 375 70 1515 . 249 3220 2380 458 . . 1046 . Melee 1093 | . . . . . . . . . 538 . . 35 . . 306 . 214 . Ramming 343 | . . . . . 164 . 15 . 69 . 4 . . . . . 3 88 Kinetic 12339 | 66 261 77 . 121 2516 . . 254 3567 . 45 860 . . 1163 2124 1285 . Thermal 1901 | . . . . . . 55 . 174 734 . . 38 900 . . . . . Explosive 5189 | . . . . 113 535 971 375 . 99 . 249 415 928 458 . . 1046 . Electromagnetic 5791 | . . . . . 202 676 219 693 682 . . 2767 552 . . . . . Impact . | . . . . . . . . . . . . . . . . . . . Slashing 1093 | . . . . . . . . . 538 . . 35 . . 306 . 214 . Piercing . | . . . . . . . . . . . . . . . . . . . Highest Corruption 3 | . . . . . . . 1 2 3 3 2 . . . . . 2 . Average Corruption 1 | . . . . . . . 1 1 1 2 1 . . . . . 1 . Corruption Purged 7 | . . . . . . . . . 4 1 2 . . . . . . . Effects 55 | . . . . . . . 1 5 40 5 1 . . . . . 3 . Message Errors 21 | . . . . . . . . 2 18 . . . . . . . 1 . Matter Fused 2 | . . . . . . . . . 1 1 . . . . . . . . Heat Flow Errors 7 | . . . . . . . . . 4 3 . . . . . . . . Energy Discharges 14 | . . . . . . . 1 2 10 1 . . . . . . . . Data Loss (minor) 5 | . . . . . . . . . 4 . 1 . . . . . . . Targeting Errors 6 | . . . . . . . . 1 3 . . . . . . . 2 . Overload Shots . | . . . . . . . . . . . . . . . . . . . Overflow Damage 1116 | . . . . . 47 97 15 43 398 . 3 61 303 26 2 . 121 . Projectiles 71 | . . . . . 28 . . 43 . . . . . . . . . . Explosions 676 | . . . . . 3 97 15 . 126 . . 61 303 26 . . 45 . Melee 369 | . . . . . 16 . . . 272 . 3 . . . 2 . 76 . Knockbacks 31 | . 3 1 . 2 5 . . 2 1 . . . . . . . 16 1 Impact 2 | . . . . . . . . . 1 . . . . . . . . 1 Kinetic 28 | . 3 1 . 2 5 . . 2 . . . . . . . . 15 . Secondary 1 | . . . . . . . . . . . . . . . . . 1 . Self-Inflicted Damage 188 | . . . . 4 26 42 . 34 . . 2 8 . 36 . . 36 . Shots 7 | . . . . 1 . 2 . 1 . . . 1 . 1 . . 1 . Rammed 41 | . . . . . 9 . 1 . 11 . 1 . . . . . 1 18 Targets Rammed 42 | . . . . . 10 . 1 . 11 . 1 . . . . . 1 18 Kicked . | . . . . . . . . . . . . . . . . . . . Crushed 1 | . . . . . 1 . . . . . . . . . . . . . Highest Temperature 423 | . 15 27 . 10 36 90 126 93 286 197 35 71 310 32 279 227 423 . Average Temperature 58 | . 10 14 . 6 12 30 47 45 64 91 17 15 154 13 86 74 99 . Received Heat Transfer 3216 | . 33 69 . 42 684 225 . 381 642 . . 126 261 . 168 . 96 489 Effects 3 | . . . . . . . . . 3 . . . . . . . . . Interference 3 | . . . . . . . . . 3 . . . . . . . . . Siege Activations 10 | . . . . . . . . . . . . . . . . 3 7 . Total Turns 161 | . . . . . . . . . . . . . . . . 66 95 . Longest Duration 54 | . . . . . . . . . . . . . . . . 37 54 . Robots Corrupted 12 | . . . . . . 2 1 1 2 . . 5 1 . . . . . Combat Hostiles 10 | . . . . . . 2 1 1 2 . . 3 1 . . . . . Parts Fried 42 | . . . . . 1 5 2 3 2 . . 19 10 . . . . . Impact Corruptions 4 | . . . . . 3 . . . . . 1 . . . . . . . Robots Melted . | . . . . . . . . . . . . . . . . . . . Combat Hostiles . | . . . . . . . . . . . . . . . . . . . Parts Melted 3 | . . . . . . . . . . . . 3 . . . . . . Heat Transferred 733 | . . . . . . 24 . 209 450 . . 50 . . . . . . Parts Sabotaged . | . . . . . . . . . . . . . . . . . . . Parts Stolen . | . . . . . . . . . . . . . . . . . . . Parts Stripped . | . . . . . . . . . . . . . . . . . . . Power Chain Reactions 17 | . . . . . . 1 . 1 . . . 14 1 . . . . . Missiles Intercepted . | . . . . . . . . . . . . . . . . . . . Alert | -11 -10 -10 -10 -9 -8 -8 -7 -7 -7 -7 -7 -7 -7 -6 -6 -6 -6 -5 ------- Run | Scr Mat Min Exi Min Mat Gar Fac Gar Fac Low Low Zio Dee Pro Fac Was Fac Fac Peak Influence 1041 | 5 221 121 . 110 362 815 477 421 1041 . . . . . 145 50 328 170 Initial 427 | . 3 85 . . . 44 427 182 220 . . . . . 40 50 35 155 Average 207 | 2 80 73 . 54 112 491 397 328 292 . . . . . 49 50 65 151 Maximum Alert Level 3 | . 1 . . . 1 3 2 2 3 . . . . . . . 1 . Low Security (%) 64 | 100 89 100 . 100 83 22 . 14 50 . . . . . 100 100 93 100 Level 1 16 | . 10 . . . 16 24 28 61 17 . . . . . . . 6 . Level 2 12 | . . . . . . 6 71 23 23 . . . . . . . . . Level 3 6 | . . . . . . 46 . . 8 . . . . . . . . . Level 4 . | . . . . . . . . . . . . . . . . . . . Level 5 . | . . . . . . . . . . . . . . . . . . . High Security . | . . . . . . . . . . . . . . . . . . . Max Security . | . . . . . . . . . . . . . . . . . . . Squads Dispatched 30 | . 1 . . 1 4 . 1 . 17 . . . . . 3 . 3 . Investigation 5 | . . . . . 1 . 1 . 3 . . . . . . . . . Extermination 8 | . . . . . . . . . 5 . . . . . 2 . 1 . Reinforcement 14 | . 1 . . . 3 . . . 7 . . . . . 1 . 2 . Assault 2 | . . . . 1 . . . . 1 . . . . . . . . . Garrison 1 | . . . . . . . . . 1 . . . . . . . . . Intercept . | . . . . . . . . . . . . . . . . . . . Construction Impeded 2 | . . . . . . . . . 1 . . . . . . . 1 . Haulers Reinforced 4 | . . . . . . . . . 3 . . . . . 1 . . . Stealth | -11 -10 -10 -10 -9 -8 -8 -7 -7 -7 -7 -7 -7 -7 -6 -6 -6 -6 -5 --------- Run | Scr Mat Min Exi Min Mat Gar Fac Gar Fac Low Low Zio Dee Pro Fac Was Fac Fac Distress Signals 9 | . . . . 1 3 1 . . 2 . . . . . 1 . . 1 Communications Jammed . | . . . . . . . . . . . . . . . . . . . Distress Signals . | . . . . . . . . . . . . . . . . . . . Times Spotted 306 | . 9 2 . 6 54 23 5 11 61 . 4 76 9 5 11 6 19 5 Peak Tracking Total 7 | . 3 2 . 3 4 7 3 4 6 . 4 4 6 3 4 2 4 5 Tactical Retreats 37 | . . . . . 7 3 . 3 4 . . 17 . 1 . . 2 . Traps | -11 -10 -10 -10 -9 -8 -8 -7 -7 -7 -7 -7 -7 -7 -6 -6 -6 -6 -5 ------- Run | Scr Mat Min Exi Min Mat Gar Fac Gar Fac Low Low Zio Dee Pro Fac Was Fac Fac Traps Triggered 29 | . . . . . . 7 2 6 9 . . . . . 1 . 4 . Indirectly 4 | . . . . . . . . . 4 . . . . . . . . . Trap Hack Attempts . | . . . . . . . . . . . . . . . . . . . Triggered . | . . . . . . . . . . . . . . . . . . . Disarmed . | . . . . . . . . . . . . . . . . . . . Reprogrammed . | . . . . . . . . . . . . . . . . . . . Reused . | . . . . . . . . . . . . . . . . . . . Traps Extracted . | . . . . . . . . . . . . . . . . . . . Installed . | . . . . . . . . . . . . . . . . . . . Triggered 2 | . . . . . . . . . 2 . . . . . . . . . Machines | -11 -10 -10 -10 -9 -8 -8 -7 -7 -7 -7 -7 -7 -7 -6 -6 -6 -6 -5 ---------- Run | Scr Mat Min Exi Min Mat Gar Fac Gar Fac Low Low Zio Dee Pro Fac Was Fac Fac Machines Disabled 29 | . . 1 . . 1 3 . 1 16 . . 3 2 . . . 2 . Max in Single Turn 5 | . . 1 . . 1 2 . 1 5 . . 1 1 . . . 1 . Garrison Access 6 | . . . . . . . . . 3 . . . . . . . 2 1 Garrison Relay 2 | . . . . . . 1 . 1 . . . . . . . . . . Machines Sabotaged . | . . . . . . . . . . . . . . . . . . . Garrisons Compromised . | . . . . . . . . . . . . . . . . . . . Overloaded Fab Kills . | . . . . . . . . . . . . . . . . . . . Fab Network Shutdowns . | . . . . . . . . . . . . . . . . . . . Hacking | -11 -10 -10 -10 -9 -8 -8 -7 -7 -7 -7 -7 -7 -7 -6 -6 -6 -6 -5 --------- Run | Scr Mat Min Exi Min Mat Gar Fac Gar Fac Low Low Zio Dee Pro Fac Was Fac Fac Machines Accessed 39 | . 3 1 1 . 7 . 4 . 13 . . . . . 2 . 7 1 Terminals 22 | . 3 1 . . 4 . 1 . 7 . . . . . 1 . 5 . Fabricators 3 | . . . . . . . 1 . 2 . . . . . . . . . Repair Stations 2 | . . . . . . . . . 1 . . . . . 1 . . . Recycling Units . | . . . . . . . . . . . . . . . . . . . Scanalyzers 3 | . . . . . 2 . 1 . . . . . . . . . . . Garrison Access 8 | . . . . . 1 . 1 . 3 . . . . . . . 2 1 Total Hacks 99 | . 11 3 1 . 22 . 9 . 28 . . . . . 4 . 19 2 Successful 53 | . 6 . 1 . 12 . 7 . 13 . . . . . 1 . 11 2 Failed 45 | . 4 3 . . 10 . 2 . 15 . . . . . 3 . 8 . Catastrophic 8 | . 1 1 . . 3 . . . 3 . . . . . . . . . Database Lockouts 1 | . 1 . . . . . . . . . . . . . . . . . Manual 42 | . 10 3 . . 13 . 1 . 5 . . 4 . . 1 . 5 . Terminals 64 | . 11 3 . . 16 . 2 . 16 . . . . . 1 . 15 . Fabricators 10 | . . . . . . . 4 . 6 . . . . . . . . . Repair Stations 4 | . . . . . . . . . 1 . . . . . 3 . . . Recycling Units . | . . . . . . . . . . . . . . . . . . . Scanalyzers 7 | . . . . . 5 . 2 . . . . . . . . . . . Garrison Access 13 | . . . . . 1 . 1 . 5 . . . . . . . 4 2 Terminal Hacks 20 | . 5 . 1 . 5 . . . 4 . . . . . . . 5 . Record 1 | . . . 1 . . . . . . . . . . . . . . . Part Schematic 3 | . . . . . . . . . . . . . . . . . 3 . Robot Analysis 1 | . 1 . . . . . . . . . . . . . . . . . Prototype ID Bank 1 | . 1 . . . . . . . . . . . . . . . . . Branch Access Points 2 | . . . . . . . . . 1 . . . . . . . 1 . Unreport Threat 3 | . . . . . 3 . . . . . . . . . . . . . Locate Traps 3 | . 1 . . . 1 . . . 1 . . . . . . . . . Recall Extermination 1 | . . . . . . . . . 1 . . . . . . . . . Recall Reinforcements 1 | . 1 . . . . . . . . . . . . . . . . . Hauler Manifests 3 | . 1 . . . 1 . . . . . . . . . . . 1 . Zone Layout 1 | . . . . . . . . . 1 . . . . . . . . . Fabricator Hacks 5 | . . . . . . . 3 . 2 . . . . . . . . . Load Schematic 2 | . . . . . . . 1 . 1 . . . . . . . . . Build 3 | . . . . . . . 2 . 1 . . . . . . . . . Repair Station Hacks 1 | . . . . . . . . . . . . . . . 1 . . . Scan Component 1 | . . . . . . . . . . . . . . . 1 . . . Recycling Unit Hacks . | . . . . . . . . . . . . . . . . . . . Scanalyzer 7 | . . . . . 5 . 2 . . . . . . . . . . . Insert Component 3 | . . . . . 2 . 1 . . . . . . . . . . . Analyze 4 | . . . . . 3 . 1 . . . . . . . . . . . Garrison Access Hacks 13 | . . . . . 1 . 1 . 5 . . . . . . . 4 2 Unlock Access 2 | . . . . . 1 . 1 . . . . . . . . . . . Seal Access 6 | . . . . . . . . . 3 . . . . . . . 2 1 Coupler Status 5 | . . . . . . . . . 2 . . . . . . . 2 1 Unauthorized Hacks 7 | . 1 . . . 1 . 1 . 2 . . . . . . . 2 . Terminals 6 | . 1 . . . 1 . 1 . 1 . . . . . . . 2 . Botnet 5 | . . . . . 1 . 1 . 1 . . . . . . . 2 . Operators 1 | . 1 . . . . . . . . . . . . . . . . . Fabricators 1 | . . . . . . . . . 1 . . . . . . . . . Report 1 | . . . . . . . . . 1 . . . . . . . . . Repair Stations . | . . . . . . . . . . . . . . . . . . . Recycling Units . | . . . . . . . . . . . . . . . . . . . Scanalyzers . | . . . . . . . . . . . . . . . . . . . Garrison Access . | . . . . . . . . . . . . . . . . . . . Data Cores Recovered . | . . . . . . . . . . . . . . . . . . . Used . | . . . . . . . . . . . . . . . . . . . Hacking Detections 31 | . 3 1 . . 7 . 4 . 10 . . . . . 2 . 4 . Full Trace Events 4 | . . . . . 1 . 1 . 2 . . . . . . . . . Feedback Events . | . . . . . . . . . . . . . . . . . . . Feedback Blocked . | . . . . . . . . . . . . . . . . . . . Robot Schematics Acquired . | . . . . . . . . . . . . . . . . . . . Robots Built . | . . . . . . . . . . . . . . . . . . . Matter . | . . . . . . . . . . . . . . . . . . . Time . | . . . . . . . . . . . . . . . . . . . Total Robot Build Rating . | . . . . . . . . . . . . . . . . . . . Part Schematics Acquired 6 | . . . . . 2 . 1 . . . . . . . . . 3 . Parts Built 2 | . . . . . . . 2 . . . . . . . . . . . Matter 204 | . . . . . . . 204 . . . . . . . . . . . Time 50 | . . . . . . . 50 . . . . . . . . . . . Total Part Build Rating 2 | . . . . . . . 2 . . . . . . . . . . . Parts Repaired . | . . . . . . . . . . . . . . . . . . . Time . | . . . . . . . . . . . . . . . . . . . Parts Recycled . | . . . . . . . . . . . . . . . . . . . Recycled Matter . | . . . . . . . . . . . . . . . . . . . Retrieved Matter . | . . . . . . . . . . . . . . . . . . . Retrieved Components . | . . . . . . . . . . . . . . . . . . . Parts Scanalyzed 3 | . . . . . 2 . 1 . . . . . . . . . . . Part Schematics Acquired 3 | . . . . . 2 . 1 . . . . . . . . . . . Parts Damaged . | . . . . . . . . . . . . . . . . . . . Bothacking | -11 -10 -10 -10 -9 -8 -8 -7 -7 -7 -7 -7 -7 -7 -6 -6 -6 -6 -5 ------------ Run | Scr Mat Min Exi Min Mat Gar Fac Gar Fac Low Low Zio Dee Pro Fac Was Fac Fac Used RIF Installer 2 | . . . . . . 1 . 1 . . . . . . . . . . Watcher Feeds 1 | . . . . . . . . 1 . . . . . . . . . . Robots Hacked 9 | . . . . . . . . . 2 . . . . . 7 . . . Non-combat 8 | . . . . . . . . . 1 . . . . . 7 . . . Combat 1 | . . . . . . . . . 1 . . . . . . . . . Robot Hacks Applied 10 | . . . . . . . . . 2 . . . . . 8 . . . no_distress 2 | . . . . . . . . . 1 . . . . . 1 . . . find_chute 6 | . . . . . . . . . . . . . . . 6 . . . find_fabricator 1 | . . . . . . . . . . . . . . . 1 . . . formatsys_high 1 | . . . . . . . . . 1 . . . . . . . . . Relay Couplers Released 13 | . . . . . . 5 . 5 . . . . . . . . 3 . Machine Destruction 13 | . . . . . . 5 . 5 . . . . . . . . 3 . Attached 2 | . . . . . . . . . 1 . . . . . . 1 . . Robots Rewired . | . . . . . . . . . . . . . . . . . . . Allies Hacked . | . . . . . . . . . . . . . . . . . . . Hacks Repelled . | . . . . . . . . . . . . . . . . . . . Allies | -11 -10 -10 -10 -9 -8 -8 -7 -7 -7 -7 -7 -7 -7 -6 -6 -6 -6 -5 -------- Run | Scr Mat Min Exi Min Mat Gar Fac Gar Fac Low Low Zio Dee Pro Fac Was Fac Fac Total Allies 7 | . . 4 . 1 . . . . 1 . . . . . . 1 . . Largest Group 3 | . . 3 . 1 . . . . 1 . . . . . . 1 . . Highest-Rated Group 40 | . . 40 . 31 . . . . 21 . . . . . . 31 . . Highest-Rated Ally 31 | . . 31 . 31 . . . . 21 . . . . . . 31 . . Total Orders . | . . . . . . . . . . . . . . . . . . . Ally Attacks 41 | . . 4 . 4 . . . . . . . . . . . 33 . . Total Damage 710 | . . 83 . 61 . . . . . . . . . . . 566 . . Kills 4 | . . 1 . 1 . . . . . . . . . . . 2 . . Allies Corrupted 1 | . . . . . . . . . 1 . . . . . . . . . Allies Melted . | . . . . . . . . . . . . . . . . . . . Intel | -11 -10 -10 -10 -9 -8 -8 -7 -7 -7 -7 -7 -7 -7 -6 -6 -6 -6 -5 ------- Run | Scr Mat Min Exi Min Mat Gar Fac Gar Fac Low Low Zio Dee Pro Fac Was Fac Fac Robot Analysis Total 1 | . 1 . . . . . . . . . . . . . . . . . Derelict Logs Recovered 7 | . . 2 . 1 . . . . . 1 1 1 . 1 . . . . Drone Launches . | . . . . . . . . . . . . . . . . . . . Drone Recoveries . | . . . . . . . . . . . . . . . . . . . Exploration | -11 -10 -10 -10 -9 -8 -8 -7 -7 -7 -7 -7 -7 -7 -6 -6 -6 -6 -5 ------------- Run | Scr Mat Min Exi Min Mat Gar Fac Gar Fac Low Low Zio Dee Pro Fac Was Fac Fac Turns Passed 41733 | 24 305 589 229 721 2512 1196 826 1049 4465 446 324 23654 1283 487 1544 382 1549 148 Spaces Moved 12430 | 6 215 532 188 434 1088 574 449 493 2084 328 216 2802 751 360 828 147 878 57 Core 1081 | 2 . . . . . . . . . . . 1079 . . . . . . Treads 4546 | . . . . 26 990 574 449 493 1533 . . 2 175 . 73 101 127 3 Legs . | . . . . . . . . . . . . . . . . . . . Wheels 6803 | 4 215 532 188 408 98 . . . 551 328 216 1721 576 360 755 46 751 54 Hover . | . . . . . . . . . . . . . . . . . . . Flight . | . . . . . . . . . . . . . . . . . . . Fastest Speed 100 | 110 110 100 110 150 160 155 155 175 130 130 130 130 130 130 130 130 130 140 Average Speed 302 | 156 110 105 115 154 179 169 160 175 168 132 130 817 156 130 137 164 138 142 Slowest Speed 1900 | 250 110 110 150 220 200 180 175 175 240 140 140 1900 240 130 220 180 180 180 Overloaded Moves . | . . . . . . . . . . . . . . . . . . . Propulsion Burnouts . | . . . . . . . . . . . . . . . . . . . Robots Hopped . | . . . . . . . . . . . . . . . . . . . Cave-ins Triggered . | . . . . . . . . . . . . . . . . . . . Exploration Rate (%) 52 | 2 40 85 54 97 73 66 10 55 55 50 42 90 66 62 25 93 25 1 Regions Visited 18 Branch Regions 8 Pre-discovered Areas 2 | . . . 1 . . . . . . . . . . 1 . . . . Known Exits Taken 9 | . . . . . 1 . 1 . 1 1 1 1 1 1 . . 1 . Unknown Exits Taken 5 | 1 1 1 1 1 . . . . . . . . . . . . . . Scrap Searched 14 | . . 1 . 1 . . . . . 4 1 4 . 3 . . . . Spaces Dug 97 | . . . . . 4 . 1 . 13 . 2 . . 22 42 . 13 . Terrain Destroyed 470 | . . . . 9 64 45 19 5 55 . 16 40 19 45 42 . 111 . Melee 70 | . . . . . . . . . 13 . 2 . . . 42 . 13 . Projectile 5 | . . . . . 4 . 1 . . . . . . . . . . . AOE 395 | . . . . 9 60 45 18 5 42 . 14 40 19 45 . . 98 . Terrain Rammed . | . . . . . . . . . . . . . . . . . . . Walls Destroyed . | . . . . . . . . . . . . . . . . . . . Machines Disabled . | . . . . . . . . . . . . . . . . . . . Actions | -11 -10 -10 -10 -9 -8 -8 -7 -7 -7 -7 -7 -7 -7 -6 -6 -6 -6 -5 --------- Run | Scr Mat Min Exi Min Mat Gar Fac Gar Fac Low Low Zio Dee Pro Fac Was Fac Fac Total 15223 | 15 253 549 201 470 1408 723 529 613 2761 338 241 3366 841 372 1093 246 1113 91 Wait 1159 | . 11 4 . 24 67 60 33 38 317 4 6 303 17 7 136 29 89 14 Move 12414 | 5 214 531 187 433 1087 573 449 492 2083 327 215 2801 750 359 828 146 877 57 Hop . | . . . . . . . . . . . . . . . . . . . Pick Up 179 | 1 7 3 11 3 36 16 9 12 35 4 . 12 6 . 6 7 11 . Fast Attach 57 | 1 . . . . 10 2 1 3 9 . . 8 13 . 3 3 4 . Attach 61 | 2 . 1 1 . 11 4 3 7 12 . . 7 3 . 5 . 3 2 Detach 22 | . . . . . 2 1 1 . 5 . . 4 6 . . 1 2 . Swap 193 | . 2 2 . 2 17 4 9 2 66 3 9 11 10 . 17 11 28 . Drop 155 | 3 3 2 2 . 28 7 6 3 33 . . 13 20 . 8 14 13 . Fire 804 | 3 16 6 . 8 140 44 17 44 162 . 7 206 16 6 41 35 53 . Melee 87 | . . . . . . . . . 19 . 2 1 . . 49 . 16 . Ram 4 | . . . . . 2 . . . . . 1 . . . . . . 1 Kick . | . . . . . . . . . . . . . . . . . . . Crush 38 | . . . . . 8 . 1 . 11 . . . . . . . 1 17 Escape Stasis 48 | . . . . . . 12 . 12 8 . . . . . . . 16 . Rewire 2 | . . . . . . . . . 1 . 1 . . . . . . . Trap . | . . . . . . . . . . . . . . . . . . . Miscellaneous . | . . . . . . . . . . . . . . . . . . . Route ------- -11/Scrapyard -10/Materials (discovered 3 exits: [*Mat x2] / *Min) -10/Mines (discovered 2 exits: [*Mat] / *Exi) -10/Exiles -9/Mines (discovered 2 exits: *Mat x2) -8/Materials (discovered 4 exits: *Fac x3 / Gar) -8/Garrison (discovered 2 exits: *Fac x2) -7/Factory (discovered 2 exits: *Sto / Gar) -7/Garrison (discovered 2 exits: *Fac x2) -7/Factory (discovered 5 exits: *Fac / Sto x2 / *Low x2) -7/Lower Caves -7/Lower Caves -7/Zion (discovered 2 exits: *Dee / [*Pro]) -7/Deep Caves -6/Proximity Caves -6/Factory -6/Waste -6/Factory (discovered 4 exits: *Fac x2 / Low x2) -5/Factory History --------- Turn | Location | Event 14 | -11/Scrapyard | Discovered new exit (range 2) 25 | -11/Scrapyard | Entered Materials 182 | -10/Materials | Discovered new exit (range 8) 184 | -10/Materials | Central database locked down 295 | -10/Materials | Discovered new exit (range 15) 304 | -10/Materials | Build established: Mutant 306 | -10/Materials | Discovered new exit (range 10) 330 | -10/Materials | Entered Mines 410 | -10/Mines | Received a Mining Laser from a helpful Derelict 564 | -10/Mines | Learned 2 Materials zone layouts 570 | -10/Mines | Deemed a non-threat by the Exiles lab entrance 571 | -10/Mines | Discovered new exit (range 5) 618 | -10/Mines | Discovered new exit (range 10) 668 | -10/Mines | Learned Materials trap positions 691 | -10/Mines | Assisted by bots powering up and referring to "LRC-V3" 834 | -10/Mines | Found a hidden stash of uninstalled traps 919 | -10/Mines | Entered Exiles 947 | -10/Exiles | Met 8R-AWN 965 | -10/Exiles | Met EX-HEX 1027 | -10/Exiles | Met EX-DEC 1047 | -10/Exiles | Learned location of Zion (-7) 1130 | -10/Exiles | Discovered new exit (range 14) 1148 | -10/Exiles | Entered Mines 1149 | -9/Mines | Assembled infested the area 1154 | -9/Mines | Assisted by a Guerilla fighting off Assembled 1208 | -9/Mines | Discovered new exit (range 15) 1401 | -9/Mines | Build established: Hauler-Mutant 1524 | -9/Mines | Met a Derelict testing a Signal Generator 1609 | -9/Mines | A weapon hastily lodged in a ceiling crevice suddenly fell to the ground 1713 | -9/Mines | Received a Rocket Launcher from a helpful Derelict 1833 | -9/Mines | Discovered new exit (range 8) 1869 | -9/Mines | Entered Materials 1869 | -8/Materials | Evolved 4 slots: Propulsion x1, Utility x3 1870 | -8/Materials | Identified exit to Factory 1872 | -8/Materials | Loaded intel: 10 trap records 2404 | -8/Materials | Lost 6 parts (2n2u2w) 2875 | -8/Materials | Discovered exit to Factory (range 12) 4223 | -8/Materials | Identified exit to Garrison 4381 | -8/Materials | Entered Garrison 4538 | -8/Garrison | Triggered checkpoint 4546 | -8/Garrison | Triggered checkpoint 4627 | -8/Garrison | Triggered checkpoint 4720 | -8/Garrison | Triggered checkpoint 4806 | -8/Garrison | Discovered exit to Factory (range 12) 4948 | -8/Garrison | Triggered checkpoint 4999 | -8/Garrison | Destroyed 8 combat bots 5092 | -8/Garrison | Found Powered Armor 5094 | -8/Garrison | Found Powered Armor 5098 | -8/Garrison | Found Powered Armor 5106 | -8/Garrison | Found Powered Armor 5222 | -8/Garrison | Triggered checkpoint 5262 | -8/Garrison | Lost 7 parts (1p1n4u1w) 5371 | -8/Garrison | Discovered exit to Factory (range 15) 5408 | -8/Garrison | Installed Relay Interface Framework 5504 | -8/Garrison | Garrison Relay disabled 5524 | -8/Garrison | Build established: Mutant 5577 | -8/Garrison | Entered Factory 5577 | -7/Factory | Evolved 2 slots: Utility x2 5994 | -7/Factory | Discovered new exit (range 5) 6149 | -7/Factory | Fabricated Hcp. Storage Unit (x1) 6180 | -7/Factory | Fabricated Hcp. Storage Unit (x1) 6403 | -7/Factory | Identified exit to Garrison 6403 | -7/Factory | Entered Garrison 6412 | -7/Garrison | Expanded RIF knowledge: Patrol Navigation 6480 | -7/Garrison | Build established: Hauler-Mutant 6511 | -7/Garrison | Triggered checkpoint 6549 | -7/Garrison | Triggered checkpoint 6620 | -7/Garrison | Lost 3 parts (1p2u) 6740 | -7/Garrison | Triggered checkpoint 6790 | -7/Garrison | Garrison Relay disabled 6867 | -7/Garrison | Discovered new exit (range 12) 7144 | -7/Garrison | Spotted B-75 Beast 7146 | -7/Garrison | Spotted B-75 Beast 7219 | -7/Garrison | Discovered new exit (range 10) 7452 | -7/Garrison | Entered Factory 7452 | -7/Factory | Discovered new exit (range 12) 7510 | -7/Factory | Build established: Scavenger-Mutant 7717 | -7/Factory | Discovered new exit (range 8) 8328 | -7/Factory | Identified exit to Storage 8328 | -7/Factory | Identified exit to Lower Caves 9604 | -7/Factory | Build established: Hauler-Mutant 10147 | -7/Factory | Garrison activated, responded to threat 11559 | -7/Factory | Destroyed 8 combat bots 11852 | -7/Factory | First assault squad dispatched 11917 | -7/Factory | Entered Lower Caves 12303 | -7/Lower Caves | Learned Factory stockpile data 12333 | -7/Lower Caves | Discovered new exit (range 7) 12362 | -7/Lower Caves | Identified exit to Lower Caves 12363 | -7/Lower Caves | Entered another Lower Caves area 12366 | -7/Lower Caves | Encountered a Warlord checkpoint 12669 | -7/Lower Caves | Discovered new exit (range 7) 12682 | -7/Lower Caves | Learned Factory emergency access door positions 12686 | -7/Lower Caves | Identified exit to Zion 12687 | -7/Lower Caves | Entered Zion 12828 | -7/Zion | Discovered new exit (range 16) 33774 | -7/Zion | RIF detected upon attempting to enter Zion 33774 | -7/Zion | Attacked by Zionites 33775 | -7/Zion | Spotted M4-QZY(B) 33788 | -7/Zion | Destroyed M4-QZY(B) 34071 | -7/Zion | Destroyed Imprinter 34114 | -7/Zion | Extracted access codes from Imprinter's data core 35109 | -7/Zion | Learned location of 1 exit from Lower Caves 35744 | -7/Zion | Found Prototype Device 35744 | -7/Zion | Identified Bomb Factory No. 2 36310 | -7/Zion | Opened final containment barrier to the Deep Caves 36333 | -7/Zion | Discovered new exit (range 3) 36333 | -7/Zion | Saw the warning signs outside the Deep Caves entrance 36337 | -7/Zion | Identified exit to Deep Caves 36341 | -7/Zion | Entered Deep Caves 36582 | -7/Deep Caves | Z-Facility disabled 36709 | -7/Deep Caves | Found Prototype Protection 36709 | -7/Deep Caves | Identified Zio. Weapon Casing 37016 | -7/Deep Caves | Core integrity fell below 50% 37169 | -7/Deep Caves | Found Prototype Protection 37169 | -7/Deep Caves | Identified Zio. Heavy Carapace 37179 | -7/Deep Caves | Found Zio. Weapon Casing 37238 | -7/Deep Caves | Found Zio. Weapon Casing 37616 | -7/Deep Caves | Discovered new exit (range 6) 37622 | -7/Deep Caves | Identified exit to Proximity Caves 37624 | -7/Deep Caves | Entered Proximity Caves 38098 | -6/Proximity Caves | Discovered new exit (range 11) 38110 | -6/Proximity Caves | Identified exit to Factory 38111 | -6/Proximity Caves | Entered Factory 38111 | -6/Factory | Evolved 2 slots: Propulsion x1, Utility x1 39655 | -6/Factory | Sucked down chute 39655 | -6/Factory | Entered Waste 39656 | -6/Waste | Met a frightened Derelict 39662 | -6/Waste | Spotted C-40 Crusher 39681 | -6/Waste | Destroyed C-40 Crusher 39689 | -6/Waste | Found Damper Plating 39708 | -6/Waste | Allies destroyed C-40 Crusher 39740 | -6/Waste | Destroyed C-40 Crusher 39746 | -6/Waste | Destroyed C-40 Crusher 39784 | -6/Waste | Found Damper Plating 39815 | -6/Waste | Allies destroyed C-40 Crusher 39843 | -6/Waste | Destroyed C-40 Crusher 39870 | -6/Waste | Found Damper Plating 39957 | -6/Waste | Discovered new exit (range 15) 40033 | -6/Waste | Identified exit to Factory 40037 | -6/Waste | Entered Factory 40259 | -6/Factory | Found Prototype Processor 40259 | -6/Factory | Identified Exp. Terrain Scan Processor 40298 | -6/Factory | Discovered new exit (range 3) 40301 | -6/Factory | Identified exit to Factory 40897 | -6/Factory | Spotted B-75 Beast 41377 | -6/Factory | Identified exit to Lower Caves 41582 | -6/Factory | Discovered exit to Factory (range 4) 41586 | -6/Factory | Entered another Factory area 41586 | -5/Factory | Evolved 2 slots: Power x1, Utility x1 41734 | -5/Factory | Self-destructed Last Messages --------------- 41687_ Fusion Modulator explodes. 41687_ W-25 Informer destroyed. 41687_ G-50 Soldier destroyed. 41687_ Acquired 29 matter. 41689_ Slammed into G-67 Veteran. 41692_ Hvy. Treads destroyed. 41692_ Slammed into G-67 Veteran. 41695_ Hvy. Missile Launcher destroyed. 41697_ G-67 Veteran heat damages Lgt. Antimatter Reactor. 41697_ Arm. Huge Wheel destroyed. 41699_ F-cell Engine destroyed. 41702_ Hvy. Flak Cannon destroyed. 41714_ Slammed into G-67 Veteran. 41716_ Lyr. Medium Armor Plating destroyed. 41717_ Slammed into G-67 Veteran. 41719_ Slammed into G-50 Soldier. 41719_ G-50 Soldier knocked back. 41721_ Slammed into G-50 Soldier. 41730_ Slammed into G-67 Veteran. 41733_ Acquired 44 matter. Map ----- +----------------------------------------------------+ | ?????????????????????????????????????????????????? | | ?????????????????????????????????????????????????? | | ?????????????????????????????????????????????????? | | ?????????????????????????????????????????????????? | | ?????????????????????????????????????????????????? | | ?????????????????????????????????????????????????? | | ?????????????????????????????????????????????????? | | ?????????????????????????????????????????????????? | | ?????????????????????????????????????????????????? | | ?????????????????????????????????????????????????? | | ?????????????????????????????????????????????????? | | ??????????###########????????????????????????????? | | ????####### #????????????????????????????? | | ????# # * #????????????????????????????? | | ????# # ?????????????????????????????? | | ????# # """ """ #????????????????????????????? | | ????# + """ """ #????????????????????????????? | | ????+ # """ """ #????????????????????????????? | | ????# # ####?????????????????????????? | | ????# # ! ## ########??????????????????? | | ????# #######;;;;;; #??????????????????? | | ????# # ; #??????????????????? | | ????# # ""G"" ; [ +??????????????????? | | ????# + " " g = #??????????????????? | | ????# # ;;###### #??????????? | | ?# # = g ;=@g """ ????????????? | | ?# #######;;;;;;;;;;# """ ????????????? | | ?######+###?????##;;;;;;;###?? """?????????????? | | ????????????????# ????? ???????????? | | ????????????????# """ #?????? #??????????? | | ????????????????# ! """ #???????? #??????????? | | ????????????????#"" """ +??????????#??????????? | | ????????????????#"Y #?????????????????????? | | ????????????????#"" #?????????????????????? | | ????????????????? ???????????????????????? | | ?????????????????########????????????????????????? | | | | | | | | | | | | | | | | | | | | | | | | | | | | | +----------------------------------------------------+ Best States ------------- Heat Dissipation 66 Energy Generation 27 Energy Capacity 1100 Matter Stores 500 Matter Capacity 500 Sight Range 16 Robot Scan Range 22 Terrain Scan Density 1010 Armor Coverage 1200 Resistance: KI 20 Weapon Shielding 100 Weapon Cycling 30 Evasion (%) 40 Targeting Accuracy 5 Recoil Reduction 3 Matter Filtering 30 Kinecelleration 30 Relay Coupler Types 27 Relay Coupler Value 1 Item Schematics ----------------- Hcp. Storage Unit | -8/Materials | Scanalyzed System Shield | -8/Materials | Scanalyzed Powered Armor | -7/Factory | Scanalyzed Imp. Transmission Jammer | -6/Factory | Hacked Lrg. Storage Unit | -6/Factory | Hacked Imp. Heavy Treads | -6/Factory | Hacked Robot Schematics ------------------ None Fabricated ------------ Hcp. Storage Unit | x1 | -7/Factory Hcp. Storage Unit | x1 | -7/Factory Alien Tech Used ----------------- None Achievements -------------- Monster Signs Are For Wimps Challenges ------------ None Game ------ Seed SurgeForceHammer Manual? 0 Play Time 03:20:27 Cumulative 88.0 hours Start 2020.11.08 @ 18:13:11 End 2020.11.08 @ 23:06:07 Sessions 1 Manual Loads 0 Difficulty Rogue Special Mode Halloween2020/ForbiddenLore Game No. 56 Rogue 56 Adventurer 0 Explorer 0 Win Type - Total 1 Types 1/0/0/0/0/0/0/0/0 Lore% 37 Gallery% 46 Achievement% 39 Wizard Run 0 Options --------- ASCII 1 Keyboard 1 Movement Vi Keybinds 0 Fullscreen 1 Font 16/Terminus Map View 75x55 Tactical HUD 1 Map Filters NONE Filters NONE Steam 1 RUN: 4b8925f6-8cc9-4e34-99fc-b6898d42f38a